[Event "Early-Titled-Tuesday-Blitz-November-28-2023"]
[Site "Chess.com"]
[Date "2023.11.28"]
[Round "6"]
[White "Olya_Oblachko"]
[Black "maurovargas01"]
[Result "1-0"]
[WhiteElo "2256"]
[BlackElo "1854"]
[TimeControl "180+1"]
[EndTime "9:13:31 PST"]
[Termination "Olya_Oblachko won on time"]

1. d4 {[%clk 0:03:00.9]} 1... d5 {[%clk 0:02:59]} 2. c4 {[%clk 0:03:00]} 2... c6
{[%clk 0:02:59.1]} 3. Nf3 {[%clk 0:02:52]} 3... e6 {[%clk 0:02:59.4]} 4. Nc3
{[%clk 0:02:51]} 4... dxc4 {[%clk 0:02:58.1]} 5. g3 {[%clk 0:02:42.4]} 5... Nf6
{[%clk 0:02:56.9]} 6. Bg2 {[%clk 0:02:40.5]} 6... Bd7 {[%clk 0:02:57]} 7. Ne5
{[%clk 0:02:32]} 7... Bd6 {[%clk 0:02:56.1]} 8. Nxc4 {[%clk 0:02:30.7]} 8... Bc7
{[%clk 0:02:54.9]} 9. O-O {[%clk 0:02:16.7]} 9... O-O {[%clk 0:02:53.2]} 10. e4
{[%clk 0:02:14.5]} 10... b5 {[%clk 0:02:49.3]} 11. Ne3 {[%clk 0:02:05.2]} 11...
Bb6 {[%clk 0:02:48.2]} 12. e5 {[%clk 0:02:00.8]} 12... Nd5 {[%clk 0:02:46.6]}
13. Ncxd5 {[%clk 0:01:52.9]} 13... exd5 {[%clk 0:02:45.9]} 14. f4 {[%clk
0:01:44.3]} 14... f6 {[%clk 0:02:45.1]} 15. Nxd5 {[%clk 0:01:25.7]} 15... Kh8
{[%clk 0:02:16.3]} 16. Nxb6 {[%clk 0:01:21.7]} 16... Qxb6 {[%clk 0:02:15.6]} 17.
Be3 {[%clk 0:01:17.5]} 17... fxe5 {[%clk 0:02:15.1]} 18. fxe5 {[%clk 0:01:15.7]}
18... Re8 {[%clk 0:02:12.8]} 19. Qf3 {[%clk 0:01:09.6]} 19... Na6 {[%clk
0:02:10]} 20. Qe4 {[%clk 0:00:53]} 20... Qd8 {[%clk 0:01:48.9]} 21. d5 {[%clk
0:00:38.9]} 21... Rc8 {[%clk 0:01:39.3]} 22. d6 {[%clk 0:00:19.2]} 22... Re6
{[%clk 0:01:06]} 23. Bh3 {[%clk 0:00:17.6]} 23... Rg6 {[%clk 0:00:44.5]} 24. Bf5
{[%clk 0:00:17]} 24... Bxf5 {[%clk 0:00:40.9]} 25. Qxf5 {[%clk 0:00:17.9]} 25...
Nb4 {[%clk 0:00:25.5]} 26. Rad1 {[%clk 0:00:07]} 26... Nd5 {[%clk 0:00:21.9]}
27. Qe4 {[%clk 0:00:07.1]} 27... Re6 {[%clk 0:00:16.4]} 28. Rxd5 {[%clk
0:00:07]} 28... cxd5 {[%clk 0:00:14.1]} 29. Qxd5 {[%clk 0:00:07.9]} 29... Qe8
{[%clk 0:00:11.9]} 30. Bd4 {[%clk 0:00:07.2]} 30... Rd8 {[%clk 0:00:08.3]} 31.
Qc5 {[%clk 0:00:04.3]} 31... Qd7 {[%clk 0:00:02.3]} 32. Re1 {[%clk 0:00:02.6]}
32... Rc8 {[%clk 0:00:02]} 33. Qxa7 {[%clk 0:00:02.2]} 33... Qxa7 {[%clk
0:00:01]} 34. Bxa7 {[%clk 0:00:03.1]} 1-0

[Event "Early-Titled-Tuesday-Blitz-November-28-2023"]
[Site "Chess.com"]
[Date "2023.11.28"]
[Round "6"]
[White "JimDiGrease"]
[Black "CristianS27"]
[Result "1/2-1/2"]
[WhiteElo "2947"]
[BlackElo "2587"]
[TimeControl "180+1"]
[EndTime "9:13:35 PST"]
[Termination "Game drawn by repetition"]

1. d4 {[%clk 0:03:00.9]} 1... Nf6 {[%clk 0:02:59.8]} 2. c4 {[%clk 0:03:01.5]}
2... g6 {[%clk 0:02:58]} 3. h4 {[%clk 0:03:00.9]} 3... c5 {[%clk 0:02:56.7]} 4.
d5 {[%clk 0:03:01]} 4... d6 {[%clk 0:02:53.3]} 5. Nc3 {[%clk 0:03:01]} 5... e6
{[%clk 0:02:53.3]} 6. e4 {[%clk 0:03:00.6]} 6... exd5 {[%clk 0:02:53.7]} 7. exd5
{[%clk 0:03:00]} 7... Bg7 {[%clk 0:02:54.1]} 8. Be2 {[%clk 0:02:59.9]} 8... O-O
{[%clk 0:02:52]} 9. h5 {[%clk 0:03:00.4]} 9... Re8 {[%clk 0:02:51]} 10. h6
{[%clk 0:03:00.8]} 10... Bh8 {[%clk 0:02:51.1]} 11. Bg5 {[%clk 0:03:01.2]} 11...
a6 {[%clk 0:02:46.5]} 12. a4 {[%clk 0:02:53.2]} 12... Nbd7 {[%clk 0:02:37.9]}
13. Nf3 {[%clk 0:02:50.5]} 13... Ne5 {[%clk 0:02:36.7]} 14. O-O {[%clk
0:02:46.6]} 14... Nxf3+ {[%clk 0:02:34.9]} 15. Bxf3 {[%clk 0:02:47.5]} 15... Bf5
{[%clk 0:02:34.8]} 16. Qd2 {[%clk 0:02:20.7]} 16... Qd7 {[%clk 0:02:24.5]} 17.
a5 {[%clk 0:02:09]} 17... Ne4 {[%clk 0:02:24.5]} 18. Bxe4 {[%clk 0:01:40.8]}
18... Bxe4 {[%clk 0:02:25.4]} 19. f3 {[%clk 0:01:29.5]} 19... Bd4+ {[%clk
0:02:16.3]} 20. Kh1 {[%clk 0:01:28.7]} 20... Bf5 {[%clk 0:01:55.3]} 21. Na4
{[%clk 0:01:26.9]} 21... f6 {[%clk 0:01:25.2]} 22. Nb6 {[%clk 0:01:19.9]} 22...
Qf7 {[%clk 0:01:23.9]} 23. Bf4 {[%clk 0:01:10.2]} 23... Rad8 {[%clk 0:01:20.3]}
24. Rae1 {[%clk 0:00:54.5]} 24... g5 {[%clk 0:01:14.2]} 25. Bh2 {[%clk
0:00:49.5]} 25... Qg6 {[%clk 0:01:05.9]} 26. Rxe8+ {[%clk 0:00:23.5]} 26... Rxe8
{[%clk 0:01:06.8]} 27. Re1 {[%clk 0:00:24.3]} 27... Bxb2 {[%clk 0:00:26.3]} 28.
Rxe8+ {[%clk 0:00:13.1]} 28... Qxe8 {[%clk 0:00:27.2]} 29. g4 {[%clk 0:00:13.9]}
29... Bxg4 {[%clk 0:00:17.1]} 30. fxg4 {[%clk 0:00:14.8]} 30... Qe4+ {[%clk
0:00:17.2]} 31. Qg2 {[%clk 0:00:14.1]} 31... Qe1+ {[%clk 0:00:15.1]} 32. Bg1
{[%clk 0:00:12]} 32... Qh4+ {[%clk 0:00:09.7]} 33. Qh2 {[%clk 0:00:11.1]} 33...
Qxg4 {[%clk 0:00:10]} 34. Qxb2 {[%clk 0:00:04]} 34... Qh3+ {[%clk 0:00:05.2]}
35. Qh2 {[%clk 0:00:04]} 35... Qf3+ {[%clk 0:00:04.9]} 36. Qg2 {[%clk
0:00:04.1]} 36... Qh5+ {[%clk 0:00:05.1]} 37. Bh2 {[%clk 0:00:03.1]} 37... Qd1+
{[%clk 0:00:05.3]} 38. Qg1 {[%clk 0:00:01.8]} 38... Qf3+ {[%clk 0:00:05.7]} 39.
Qg2 {[%clk 0:00:02.4]} 39... Qd1+ {[%clk 0:00:06.5]} 40. Bg1 {[%clk 0:00:03.1]}
40... Qh5+ {[%clk 0:00:06.6]} 41. Qh2 {[%clk 0:00:04]} 41... Qf3+ {[%clk
0:00:06.9]} 42. Qg2 {[%clk 0:00:03]} 42... Qh5+ {[%clk 0:00:07.3]} 1/2-1/2

[Event "Early-Titled-Tuesday-Blitz-November-28-2023"]
[Site "Chess.com"]
[Date "2023.11.28"]
[Round "6"]
[White "Kotlyar_K"]
[Black "OneTrickPony_82"]
[Result "1-0"]
[WhiteElo "2661"]
[BlackElo "2399"]
[TimeControl "180+1"]
[EndTime "9:13:36 PST"]
[Termination "Kotlyar_K won on time"]

1. e4 {[%clk 0:02:51.4]} 1... e5 {[%clk 0:02:58.9]} 2. Nf3 {[%clk 0:02:51.6]}
2... Nc6 {[%clk 0:02:59.1]} 3. Bb5 {[%clk 0:02:48.7]} 3... a6 {[%clk 0:02:59.3]}
4. Ba4 {[%clk 0:02:48.9]} 4... Nf6 {[%clk 0:02:59.6]} 5. O-O {[%clk 0:02:49.2]}
5... Be7 {[%clk 0:02:59.8]} 6. Re1 {[%clk 0:02:49.1]} 6... b5 {[%clk 0:02:59.9]}
7. Bb3 {[%clk 0:02:49.6]} 7... O-O {[%clk 0:03:00.2]} 8. c3 {[%clk 0:02:49.4]}
8... d5 {[%clk 0:03:00]} 9. exd5 {[%clk 0:02:41.8]} 9... Nxd5 {[%clk 0:02:59.9]}
10. d4 {[%clk 0:02:18.5]} 10... exd4 {[%clk 0:02:55.3]} 11. Nxd4 {[%clk
0:02:18.2]} 11... Nxd4 {[%clk 0:02:48.6]} 12. Qxd4 {[%clk 0:02:19.1]} 12... c6
{[%clk 0:02:40.6]} 13. Nd2 {[%clk 0:02:06.8]} 13... Bf6 {[%clk 0:02:34.5]} 14.
Qc5 {[%clk 0:02:06.6]} 14... Re8 {[%clk 0:02:26.8]} 15. Ne4 {[%clk 0:01:40.9]}
15... Bf5 {[%clk 0:01:37.1]} 16. Nxf6+ {[%clk 0:01:28.1]} 16... Qxf6 {[%clk
0:01:31.7]} 17. Be3 {[%clk 0:01:21.9]} 17... Nxe3 {[%clk 0:01:02.9]} 18. Rxe3
{[%clk 0:01:21]} 18... Rxe3 {[%clk 0:01:01.9]} 19. Qxe3 {[%clk 0:01:21.9]} 19...
Rd8 {[%clk 0:01:00.5]} 20. Re1 {[%clk 0:01:21.9]} 20... h6 {[%clk 0:00:55]} 21.
h3 {[%clk 0:01:21.2]} 21... g5 {[%clk 0:00:52.3]} 22. Qa7 {[%clk 0:01:15.2]}
22... c5 {[%clk 0:00:47.6]} 23. Qxc5 {[%clk 0:00:46.6]} 23... Kg7 {[%clk
0:00:44.7]} 24. Qc7 {[%clk 0:00:40.6]} 24... Rd7 {[%clk 0:00:42.8]} 25. Qc5
{[%clk 0:00:33.8]} 25... Rd8 {[%clk 0:00:32.1]} 26. Qe3 {[%clk 0:00:33.1]} 26...
Bg6 {[%clk 0:00:30.6]} 27. a4 {[%clk 0:00:20.2]} 27... h5 {[%clk 0:00:25.2]} 28.
axb5 {[%clk 0:00:20]} 28... axb5 {[%clk 0:00:24.8]} 29. Qe2 {[%clk 0:00:20.3]}
29... Qc6 {[%clk 0:00:17.3]} 30. Qe5+ {[%clk 0:00:19.3]} 30... Kh6 {[%clk
0:00:13.7]} 31. Qe7 {[%clk 0:00:17.5]} 31... Qd6 {[%clk 0:00:09.9]} 32. Qe3
{[%clk 0:00:15.4]} 32... f6 {[%clk 0:00:07]} 33. Qe2 {[%clk 0:00:13.2]} 33...
Qd2 {[%clk 0:00:06]} 34. h4 {[%clk 0:00:08.1]} 34... gxh4 {[%clk 0:00:02.7]} 35.
Be6 {[%clk 0:00:06.5]} 35... Qxe2 {[%clk 0:00:02]} 36. Rxe2 {[%clk 0:00:07.4]}
36... Re8 {[%clk 0:00:02.1]} 37. Kf1 {[%clk 0:00:07.3]} 37... Bd3 {[%clk
0:00:01.5]} 38. Ke1 {[%clk 0:00:04.9]} 1-0

[Event "Early-Titled-Tuesday-Blitz-November-28-2023"]
[Site "Chess.com"]
[Date "2023.11.28"]
[Round "6"]
[White "Firouzja2003"]
[Black "Witik"]
[Result "1-0"]
[WhiteElo "3047"]
[BlackElo "2799"]
[TimeControl "180+1"]
[EndTime "9:13:41 PST"]
[Termination "Firouzja2003 won on time"]

1. b4 {[%clk 0:02:59.8]} 1... d5 {[%clk 0:02:58.5]} 2. Bb2 {[%clk 0:02:59.9]}
2... Bg4 {[%clk 0:02:58.2]} 3. Nf3 {[%clk 0:02:50]} 3... Bxf3 {[%clk 0:02:57.1]}
4. exf3 {[%clk 0:02:45.7]} 4... Nd7 {[%clk 0:02:56.7]} 5. f4 {[%clk 0:02:44.7]}
5... Ngf6 {[%clk 0:02:56.1]} 6. g3 {[%clk 0:02:44.7]} 6... g6 {[%clk 0:02:55.8]}
7. Bg2 {[%clk 0:02:44.6]} 7... c6 {[%clk 0:02:56.5]} 8. O-O {[%clk 0:02:44.8]}
8... Bg7 {[%clk 0:02:57.2]} 9. d3 {[%clk 0:02:44.8]} 9... O-O {[%clk 0:02:57.4]}
10. Nd2 {[%clk 0:02:45.2]} 10... Ne8 {[%clk 0:02:57.2]} 11. Bxg7 {[%clk
0:02:44.1]} 11... Nxg7 {[%clk 0:02:57.1]} 12. Nf3 {[%clk 0:02:44.3]} 12... a5
{[%clk 0:02:53.8]} 13. a3 {[%clk 0:02:42.3]} 13... Nf5 {[%clk 0:02:45.9]} 14.
Qd2 {[%clk 0:02:41.7]} 14... Qb6 {[%clk 0:02:42.6]} 15. c3 {[%clk 0:02:25.3]}
15... e6 {[%clk 0:02:34.3]} 16. Rfb1 {[%clk 0:02:22.9]} 16... axb4 {[%clk
0:02:32.5]} 17. axb4 {[%clk 0:02:22.8]} 17... Rxa1 {[%clk 0:02:25.7]} 18. Rxa1
{[%clk 0:02:22.6]} 18... c5 {[%clk 0:02:26.3]} 19. bxc5 {[%clk 0:01:51.6]} 19...
Nxc5 {[%clk 0:02:24.6]} 20. Bf1 {[%clk 0:01:31.9]} 20... Rc8 {[%clk 0:02:20.2]}
21. g4 {[%clk 0:01:17.8]} 21... Nd6 {[%clk 0:02:18.3]} 22. Nd4 {[%clk
0:01:17.8]} 22... Qd8 {[%clk 0:02:05]} 23. h3 {[%clk 0:01:16.5]} 23... Ra8
{[%clk 0:01:56.3]} 24. Rb1 {[%clk 0:01:08.9]} 24... Qf6 {[%clk 0:01:51.6]} 25.
Qe3 {[%clk 0:01:06.5]} 25... Ra3 {[%clk 0:01:37]} 26. Nb5 {[%clk 0:00:37.6]}
26... Nxb5 {[%clk 0:01:22.9]} 27. Qxc5 {[%clk 0:00:31.9]} 27... Nxc3 {[%clk
0:01:13.9]} 28. Rxb7 {[%clk 0:00:20.7]} 28... Ra8 {[%clk 0:01:13.7]} 29. g5
{[%clk 0:00:18.6]} 29... Na4 {[%clk 0:00:43.7]} 30. Qc7 {[%clk 0:00:10]} 30...
Qg7 {[%clk 0:00:35.7]} 31. d4 {[%clk 0:00:08.9]} 31... h6 {[%clk 0:00:19.5]} 32.
gxh6 {[%clk 0:00:07]} 32... Qf6 {[%clk 0:00:19.2]} 33. Qe5 {[%clk 0:00:04.6]}
33... Qxe5 {[%clk 0:00:16.2]} 34. fxe5 {[%clk 0:00:05.5]} 34... Nc3 {[%clk
0:00:15.3]} 35. Bd3 {[%clk 0:00:05.4]} 35... Rf8 {[%clk 0:00:14.4]} 36. h4
{[%clk 0:00:04.9]} 36... Kh7 {[%clk 0:00:14.2]} 37. h5 {[%clk 0:00:05.5]} 37...
Kxh6 {[%clk 0:00:14.6]} 38. hxg6 {[%clk 0:00:06.2]} 38... fxg6 {[%clk
0:00:15.5]} 39. Re7 {[%clk 0:00:06]} 39... Rf4 {[%clk 0:00:16.1]} 40. Rxe6
{[%clk 0:00:06.2]} 40... Rxd4 {[%clk 0:00:16.6]} 41. Rxg6+ {[%clk 0:00:06.4]}
41... Kh5 {[%clk 0:00:17.3]} 42. Rg3 {[%clk 0:00:05.9]} 42... Ne4 {[%clk
0:00:10.5]} 43. e6 {[%clk 0:00:06.1]} 43... Nxg3 {[%clk 0:00:04.7]} 44. e7
{[%clk 0:00:06.5]} 44... Ne2+ {[%clk 0:00:03.3]} 45. Bxe2+ {[%clk 0:00:06.2]}
1-0

[Event "Early-Titled-Tuesday-Blitz-November-28-2023"]
[Site "Chess.com"]
[Date "2023.11.28"]
[Round "6"]
[White "KaydenTroffChess"]
[Black "jcmesafischer"]
[Result "1-0"]
[WhiteElo "2785"]
[BlackElo "2346"]
[TimeControl "180+1"]
[EndTime "9:13:41 PST"]
[Termination "KaydenTroffChess won by checkmate"]

1. d4 {[%clk 0:03:00.9]} 1... Nf6 {[%clk 0:02:47.9]} 2. Nf3 {[%clk 0:03:01.1]}
2... d5 {[%clk 0:02:47]} 3. Bf4 {[%clk 0:03:01.1]} 3... e6 {[%clk 0:02:45.3]} 4.
e3 {[%clk 0:03:01.3]} 4... Nbd7 {[%clk 0:02:44.9]} 5. Nbd2 {[%clk 0:03:00.1]}
5... c5 {[%clk 0:02:43.3]} 6. c3 {[%clk 0:02:58.1]} 6... Qb6 {[%clk 0:02:34.5]}
7. Rb1 {[%clk 0:02:55.6]} 7... Bd6 {[%clk 0:02:33.4]} 8. Ne5 {[%clk 0:02:55.7]}
8... Qc7 {[%clk 0:02:27.4]} 9. Ndf3 {[%clk 0:02:52.5]} 9... Ne4 {[%clk
0:02:25.6]} 10. Bd3 {[%clk 0:02:46.2]} 10... f6 {[%clk 0:02:23.3]} 11. Nxd7
{[%clk 0:02:41.2]} 11... Bxd7 {[%clk 0:02:22.9]} 12. Bg3 {[%clk 0:02:25.2]}
12... O-O {[%clk 0:01:58.2]} 13. Bxe4 {[%clk 0:01:35.7]} 13... dxe4 {[%clk
0:01:57.8]} 14. Bxd6 {[%clk 0:01:35.6]} 14... Qxd6 {[%clk 0:01:51.3]} 15. dxc5
{[%clk 0:01:35]} 15... Qc7 {[%clk 0:01:36.6]} 16. Nd2 {[%clk 0:01:31.6]} 16...
f5 {[%clk 0:01:20.3]} 17. Nb3 {[%clk 0:01:11.5]} 17... Bb5 {[%clk 0:01:17.4]}
18. Nd4 {[%clk 0:01:09.4]} 18... Bd7 {[%clk 0:00:47.5]} 19. b4 {[%clk
0:01:03.2]} 19... Rad8 {[%clk 0:00:41.9]} 20. Qb3 {[%clk 0:01:01.8]} 20... Qc8
{[%clk 0:00:17.1]} 21. O-O {[%clk 0:00:57.7]} 21... Kh8 {[%clk 0:00:17.1]} 22.
a4 {[%clk 0:00:29.8]} 22... e5 {[%clk 0:00:17.3]} 23. Nb5 {[%clk 0:00:28.5]}
23... Be6 {[%clk 0:00:16.5]} 24. Nxa7 {[%clk 0:00:18.7]} 24... Qd7 {[%clk
0:00:10.9]} 25. Qb2 {[%clk 0:00:17.3]} 25... Qxa4 {[%clk 0:00:09.7]} 26. Ra1
{[%clk 0:00:16.5]} 26... Qd7 {[%clk 0:00:09.5]} 27. b5 {[%clk 0:00:14.5]} 27...
Qe7 {[%clk 0:00:09.1]} 28. c6 {[%clk 0:00:13.6]} 28... f4 {[%clk 0:00:08.1]} 29.
cxb7 {[%clk 0:00:10.5]} 29... Qxb7 {[%clk 0:00:06.6]} 30. Nc6 {[%clk 0:00:10.2]}
30... Rde8 {[%clk 0:00:06.6]} 31. Nxe5 {[%clk 0:00:10.2]} 31... Bf5 {[%clk
0:00:04.6]} 32. c4 {[%clk 0:00:10.3]} 32... f3 {[%clk 0:00:04.6]} 33. g3 {[%clk
0:00:09.9]} 33... Qe7 {[%clk 0:00:03.9]} 34. Nc6 {[%clk 0:00:07.4]} 34... Qf7
{[%clk 0:00:03.4]} 35. Ra7 {[%clk 0:00:07.3]} 35... Qg6 {[%clk 0:00:02.8]} 36.
Rd1 {[%clk 0:00:06.1]} 36... Rf7 {[%clk 0:00:02.8]} 37. Rxf7 {[%clk 0:00:05.7]}
37... Qxf7 {[%clk 0:00:03.7]} 38. h4 {[%clk 0:00:03.9]} 38... Qh5 {[%clk
0:00:03.9]} 39. Qd4 {[%clk 0:00:01.1]} 39... Qg4 {[%clk 0:00:04.1]} 40. Qd8
{[%clk 0:00:01.9]} 40... Rg8 {[%clk 0:00:04]} 41. Ne7 {[%clk 0:00:01.9]} 41...
Be6 {[%clk 0:00:02.8]} 42. Nxg8 {[%clk 0:00:02.1]} 42... Bxg8 {[%clk 0:00:03]}
43. Qd7 {[%clk 0:00:02.8]} 43... Be6 {[%clk 0:00:02]} 44. Qe8+ {[%clk
0:00:02.8]} 44... Bg8 {[%clk 0:00:02.3]} 45. Rd8 {[%clk 0:00:03.6]} 45... Qh3
{[%clk 0:00:01.3]} 46. Qxg8# {[%clk 0:00:04.5]} 1-0

[Event "Early-Titled-Tuesday-Blitz-November-28-2023"]
[Site "Chess.com"]
[Date "2023.11.28"]
[Round "6"]
[White "Elsa167"]
[Black "TRadjabov"]
[Result "0-1"]
[WhiteElo "2905"]
[BlackElo "3029"]
[TimeControl "180+1"]
[EndTime "9:13:42 PST"]
[Termination "TRadjabov won on time"]

1. d4 {[%clk 0:03:00.9]} 1... Nf6 {[%clk 0:02:23]} 2. c4 {[%clk 0:02:23]} 2...
e6 {[%clk 0:02:23]} 3. Nf3 {[%clk 0:02:23.1]} 3... d5 {[%clk 0:02:22.3]} 4. Nc3
{[%clk 0:02:23.6]} 4... Be7 {[%clk 0:02:17]} 5. g3 {[%clk 0:02:23.5]} 5... O-O
{[%clk 0:02:13.8]} 6. Bg2 {[%clk 0:02:23.8]} 6... dxc4 {[%clk 0:02:14.7]} 7. Ne5
{[%clk 0:02:23.6]} 7... Nc6 {[%clk 0:02:15.4]} 8. Bxc6 {[%clk 0:02:23]} 8...
bxc6 {[%clk 0:02:15.7]} 9. Nxc6 {[%clk 0:02:23.9]} 9... Qe8 {[%clk 0:02:15.9]}
10. Nxe7+ {[%clk 0:02:24.5]} 10... Qxe7 {[%clk 0:02:16.4]} 11. Qa4 {[%clk
0:02:25.2]} 11... Nd5 {[%clk 0:02:16.3]} 12. Qxc4 {[%clk 0:02:13.6]} 12... a5
{[%clk 0:02:15.7]} 13. Bd2 {[%clk 0:02:04]} 13... Ba6 {[%clk 0:02:08.5]} 14. Qc5
{[%clk 0:01:58]} 14... Qd7 {[%clk 0:02:05.3]} 15. Rc1 {[%clk 0:01:32.7]} 15...
Rfb8 {[%clk 0:01:52]} 16. b3 {[%clk 0:01:28.9]} 16... h6 {[%clk 0:01:33.2]} 17.
f3 {[%clk 0:01:28.6]} 17... a4 {[%clk 0:01:04.5]} 18. Nxa4 {[%clk 0:01:15.3]}
18... Bb5 {[%clk 0:01:04.6]} 19. e4 {[%clk 0:00:53.4]} 19... Bxa4 {[%clk
0:00:50.5]} 20. bxa4 {[%clk 0:00:53.7]} 20... Nf6 {[%clk 0:00:45.7]} 21. Be3
{[%clk 0:00:48.5]} 21... Rxa4 {[%clk 0:00:41.6]} 22. O-O {[%clk 0:00:45.6]}
22... Rxa2 {[%clk 0:00:38.5]} 23. Qxc7 {[%clk 0:00:30]} 23... Qb5 {[%clk
0:00:22.9]} 24. Qc3 {[%clk 0:00:23.7]} 24... Rba8 {[%clk 0:00:19.8]} 25. Rc2
{[%clk 0:00:16.6]} 25... R8a3 {[%clk 0:00:12]} 26. Qc8+ {[%clk 0:00:14]} 26...
Kh7 {[%clk 0:00:12.5]} 27. Rxa2 {[%clk 0:00:13.2]} 27... Rxa2 {[%clk 0:00:13.1]}
28. Qc3 {[%clk 0:00:11.5]} 28... Qa6 {[%clk 0:00:08.5]} 29. Bf2 {[%clk
0:00:06.1]} 29... Ra3 {[%clk 0:00:08.1]} 30. Qc7 {[%clk 0:00:04.9]} 30... Rxf3
{[%clk 0:00:06.8]} 31. Qxf7 {[%clk 0:00:05.6]} 31... Qe2 {[%clk 0:00:03.8]} 32.
Qxe6 {[%clk 0:00:04.9]} 32... Nxe4 {[%clk 0:00:04.1]} 33. Qg4 {[%clk 0:00:01.5]}
33... Rxf2 {[%clk 0:00:04]} 34. Qxe2 {[%clk 0:00:01.2]} 34... Rxe2 {[%clk
0:00:04.6]} 35. Rd1 {[%clk 0:00:01.9]} 35... Nc3 {[%clk 0:00:03.3]} 36. Rd3
{[%clk 0:00:02.3]} 36... Nd5 {[%clk 0:00:03.9]} 37. h4 {[%clk 0:00:02.7]} 37...
Kg6 {[%clk 0:00:03.9]} 38. Kf1 {[%clk 0:00:02.9]} 38... Re3 {[%clk 0:00:02.8]}
39. Rd2 {[%clk 0:00:02.6]} 39... Kf5 {[%clk 0:00:02.6]} 40. Ra2 {[%clk
0:00:03.5]} 40... Rxg3 {[%clk 0:00:02.3]} 41. Ra7 {[%clk 0:00:04.4]} 41... Ke4
{[%clk 0:00:02.5]} 42. Rxg7 {[%clk 0:00:04.3]} 42... Rxg7 {[%clk 0:00:02.4]} 0-1

[Event "Early-Titled-Tuesday-Blitz-November-28-2023"]
[Site "Chess.com"]
[Date "2023.11.28"]
[Round "6"]
[White "marcodobrikov"]
[Black "vasblesk"]
[Result "0-1"]
[WhiteElo "2621"]
[BlackElo "2828"]
[TimeControl "180+1"]
[EndTime "9:13:42 PST"]
[Termination "vasblesk won by checkmate"]

1. Nc3 {[%clk 0:02:56.4]} 1... d5 {[%clk 0:02:58.8]} 2. d4 {[%clk 0:02:56.1]}
2... Nf6 {[%clk 0:02:54]} 3. Bg5 {[%clk 0:02:52.2]} 3... c5 {[%clk 0:02:43.8]}
4. e3 {[%clk 0:02:36]} 4... cxd4 {[%clk 0:02:41.3]} 5. exd4 {[%clk 0:02:35.9]}
5... Nc6 {[%clk 0:02:36.2]} 6. Bxf6 {[%clk 0:02:30.9]} 6... gxf6 {[%clk
0:02:35.8]} 7. Nf3 {[%clk 0:02:29.8]} 7... Bg4 {[%clk 0:02:32.5]} 8. Be2 {[%clk
0:02:29.6]} 8... e6 {[%clk 0:02:32.6]} 9. h3 {[%clk 0:02:21.7]} 9... Bxf3 {[%clk
0:02:28.8]} 10. Bxf3 {[%clk 0:02:22.6]} 10... Qb6 {[%clk 0:02:28.2]} 11. Ne2
{[%clk 0:02:20.9]} 11... Qxb2 {[%clk 0:02:22.4]} 12. Rb1 {[%clk 0:02:19.9]}
12... Qxa2 {[%clk 0:02:16.2]} 13. Rxb7 {[%clk 0:02:20.8]} 13... Qa6 {[%clk
0:02:00.7]} 14. Qb1 {[%clk 0:02:13.5]} 14... Bd6 {[%clk 0:01:57.5]} 15. O-O
{[%clk 0:02:12.9]} 15... O-O {[%clk 0:01:53.4]} 16. Rd7 {[%clk 0:02:10.8]} 16...
Rfd8 {[%clk 0:01:30.6]} 17. Rxd8+ {[%clk 0:02:10.1]} 17... Rxd8 {[%clk
0:01:31.5]} 18. Ng3 {[%clk 0:02:09.5]} 18... Nxd4 {[%clk 0:01:23.8]} 19. Bd1
{[%clk 0:01:55.3]} 19... Qb6 {[%clk 0:01:18.3]} 20. Qa2 {[%clk 0:01:29.1]} 20...
Bxg3 {[%clk 0:00:34.9]} 21. fxg3 {[%clk 0:01:11.5]} 21... Nxc2+ {[%clk
0:00:33.6]} 22. Kh2 {[%clk 0:00:49.3]} 22... Ne3 {[%clk 0:00:32.1]} 23. Rxf6
{[%clk 0:00:38.3]} 23... Qd4 {[%clk 0:00:27.2]} 24. Qf2 {[%clk 0:00:36.6]} 24...
Qxd1 {[%clk 0:00:18.3]} 25. Qxe3 {[%clk 0:00:34.2]} 25... Qh5 {[%clk 0:00:18.2]}
26. g4 {[%clk 0:00:26.7]} 26... Qh4 {[%clk 0:00:18]} 27. Qf4 {[%clk 0:00:21.8]}
27... h6 {[%clk 0:00:10.5]} 28. Rxf7 {[%clk 0:00:20.6]} 28... Qg5 {[%clk
0:00:10.5]} 29. Qc7 {[%clk 0:00:20.2]} 29... Rf8 {[%clk 0:00:08.3]} 30. Rxf8+
{[%clk 0:00:14.8]} 30... Kxf8 {[%clk 0:00:09.2]} 31. Qb8+ {[%clk 0:00:14.9]}
31... Kf7 {[%clk 0:00:08.7]} 32. Qxa7+ {[%clk 0:00:15.8]} 32... Qe7 {[%clk
0:00:08.7]} 33. Qe3 {[%clk 0:00:15.6]} 33... Qf6 {[%clk 0:00:08.6]} 34. Kg3
{[%clk 0:00:15.3]} 34... e5 {[%clk 0:00:08.3]} 35. h4 {[%clk 0:00:15.2]} 35...
e4 {[%clk 0:00:07]} 36. Qf4 {[%clk 0:00:13.9]} 36... Qxf4+ {[%clk 0:00:06]} 37.
Kxf4 {[%clk 0:00:14.8]} 37... Ke6 {[%clk 0:00:02.7]} 38. g5 {[%clk 0:00:12.5]}
38... hxg5+ {[%clk 0:00:02.4]} 39. hxg5 {[%clk 0:00:12.9]} 39... Kf7 {[%clk
0:00:02.6]} 40. g4 {[%clk 0:00:13.2]} 40... Kg6 {[%clk 0:00:02.8]} 41. Ke5
{[%clk 0:00:14.1]} 41... Kxg5 {[%clk 0:00:03.2]} 42. Kxd5 {[%clk 0:00:15]} 42...
e3 {[%clk 0:00:03.5]} 43. Ke4 {[%clk 0:00:15.9]} 43... e2 {[%clk 0:00:04.4]} 44.
Kf3 {[%clk 0:00:15.2]} 44... e1=Q {[%clk 0:00:05.3]} 45. Kg2 {[%clk 0:00:15.6]}
45... Qe3 {[%clk 0:00:05.5]} 46. Kh1 {[%clk 0:00:16]} 46... Kxg4 {[%clk
0:00:06]} 47. Kg2 {[%clk 0:00:16.9]} 47... Qd2+ {[%clk 0:00:06.5]} 48. Kh1
{[%clk 0:00:17.8]} 48... Kg3 {[%clk 0:00:06.3]} 49. Kg1 {[%clk 0:00:18.7]} 49...
Qd1# {[%clk 0:00:06.9]} 0-1